[Event "Austrian Championship 2022"]
[Site "Vienna"]
[Date "2022.08.12"]
[Round "1.5"]
[White "Belke, Frank"]
[Black "Spiesberger, Gerhard"]
[Result "1-0"]
[ECO "A21"]
[WhiteElo "2226"]
[BlackElo "1972"]
[Annotator "TA"]
[PlyCount "58"]
[EventDate "2022.08.12"]
[EventType "swiss"]
[EventCountry "AUT"]
[SourceTitle "playchess.com"]
[Source "ChessBase"]
[SourceQuality "1"]
[TimeControl "40/5400+30:1800+30"]

{[%evp 9,58,61,70,20,16,17,43,41,46,32,47,43,54,37,37,47,62,75,66,-63,-77,-75,-27,-22,72,18,26,-14,0,-13,-20,-194,-173,-185,-168,-164,0,-89,72,74,149,70,182,199,279,233,295,286,307,275,292]} 1. d4 {[%emt 0:00:03]} d6 {[%emt 0:00:08]} 2. c4 {[%emt 0:00:05]} e5 {[%emt 0:00:04]} 3. Nc3 {[%emt 0:00:03]} Nc6 {[%emt 0:00:34]} 4. d5 {[%emt 0:00:15]} Nce7 {[%emt 0:01:14]} 5. e4 {[%emt 0:00:09]} f5 {[%emt 0:00:31]} 6. f3 {[%emt 0:01:05] A21: English Opening: 1...e5 2 Nc3.} (6. Bd3 $14) 6... Nf6 $11 {[%emt 0:01:06]} 7. Bd3 {[%emt 0:00:07]} g6 {[%emt 0:01:37]} 8. Nge2 {[%emt 0:01:11] White is slightly better.} Bg7 {[%emt 0:00:27]} 9. Be3 {[%emt 0:00:37]} Bd7 {[%emt 0:03:11] [#]} 10. h3 $146 {[%emt 0:04:20]} ({Predecessor:} 10. Qd2 O-O 11. O-O-O f4 12. Bf2 g5 13. g4 Nc8 14. h3 Qe7 15. Kb1 Rd8 16. Ka1 Be8 {½-½ (47) Ditmas,H (1913)-Meyer,T (1993) Delmenhorst 2011}) 10... a6 {[%emt 0:01:05]} 11. g4 {[%emt 0:03:16]} f4 {[%emt 0:07:43]} 12. Bf2 {[%emt 0:00:23]} c5 {[%emt 0:01:06]} 13. dxc6 {[%emt 0:05:03]} bxc6 {[%emt 0:01:11]} 14. O-O {[%emt 0:00:12]} (14. Bc2 $14) 14... g5 $1 $15 {[%emt 0:12:52]} 15. Na4 {[%emt 0:02:33]} Be6 {[%emt 0:02:30]} (15... h5 $17 {[%cal Rh5g4]} 16. Nec3 c5) 16. Nec3 {[%emt 0:02:19]} Rb8 {[%emt 0:02:43]} (16... h5 $11) 17. c5 $16 {[%emt 0:04:55] aiming for cxd6.} d5 {[%emt 0:00:42]} 18. Nb6 {[%emt 0:02:32]} h5 {[%emt 0:04:20]} 19. Qe2 {[%emt 0:07:14]} d4 {[%emt 0:03:49] Threatens to win with ...hxg4.} 20. Nca4 $2 {[%emt 0:00:14]} (20. Bc4 $1 $11 Bxc4 21. Nxc4) 20... hxg4 $19 {[%emt 0:00:41]} 21. hxg4 {[%emt 0:00:04]} Ng6 {[%emt 0:02:22] And now ...Rh3 would win.} 22. Bc4 {[%emt 0:08:48] [#]} Qe7 {[%emt 0:04:50]} (22... Bxg4 $1 $19 {[%mdl 512] Hoping for ...Bh3.} 23. fxg4 Rh3) 23. Kg2 {[%emt 0:02:51] [#]} (23. Bxe6 $1 $11 {keeps the balance.} Qxe6 24. Qc4) 23... Kf7 $2 {[%emt 0:11:08]} (23... d3 $1 $17 {keeps the pressure on.} 24. Bxd3 Nxg4 25. fxg4 f3+ 26. Qxf3 Nf4+ 27. Kg1 Nh3+ 28. Kg2 Nf4+ 29. Kg1 Nh3+ 30. Kg2 Nf4+) 24. Rh1 $16 {[%emt 0:05:33]} Nd7 {[%emt 0:05:50] [#]} (24... Nh4+ $142 25. Bxh4 gxh4) 25. b4 {[%emt 0:03:32] The board is on fire. White is more active.} (25. Nd5 $1 $16 {[%mdl 512]} Qd8 26. Rxh8 (26. Ndb6 Nh4+ 27. Bxh4 gxh4 $14) 26... Bxh8 27. Ndb6) 25... Rxh1 {[%emt 0:06:15]} ({Black should play} 25... Nh4+ $1 $14 26. Bxh4 gxh4) 26. Rxh1 $18 {[%emt 0:00:15]} Nxb6 {[%emt 0:00:09]} (26... Ndf8 {keeps fighting.} 27. Bxe6+ (27. Bxa6 Nh4+ 28. Bxh4 gxh4 $16) 27... Qxe6) 27. Nxb6 {[%emt 0:00:08]} Kf6 {[%emt 0:08:13]} 28. Bxa6 {[%emt 0:02:23]} Rd8 {[%emt 0:00:41]} 29. Bd3 {[%emt 0:01:04]} Nf8 {[%emt 0:17:58] Weighted Error Value: White=0.32/Black=0.41} 1-0

[Event "Austrian Championship 2022"]
[Site "Vienna"]
[Date "2022.08.12"]
[Round "1.6"]
[White "Sucher, Johannes"]
[Black "Schwabeneder, Florian"]
[Result "0-1"]
[ECO "D39"]
[WhiteElo "2164"]
[BlackElo "2430"]
[Annotator "TA"]
[PlyCount "64"]
[EventDate "2022.08.12"]
[EventType "swiss"]
[EventCountry "AUT"]
[SourceTitle "playchess.com"]
[Source "ChessBase"]
[SourceQuality "1"]
[TimeControl "40/5400+30:1800+30"]

{[%evp 11,64,-2,0,-97,-87,-83,-84,-77,-69,-104,-96,-114,-112,-105,-100,-107,-96,-170,-168,-207,-131,-136,-135,-267,-295,-345,-343,-326,-378,-367,-367,-337,-312,-269,-214,-206,-212,-278,-283,-370,-245,-445,-408,-412,-389,-418,-379,-437,-375,-631,-609,-793,-780,-5618,-1231]} 1. d4 {[%emt 0:00:04]} e6 {[%emt 0:01:14]} 2. Nf3 {[%emt 0:00:54]} d5 {[%emt 0:00:54]} 3. c4 {[%emt 0:00:42]} Nf6 {[%emt 0:00:16]} 4. Nc3 {[%emt 0:00:31]} Bb4 {[%emt 0:02:46]} 5. Bg5 {[%emt 0:04:56]} dxc4 {[%emt 0:02:14]} 6. Qa4+ {[%emt 0:07:05]} Nc6 {[%emt 0:00:13]} 7. O-O-O {[%emt 0:02:53] D39: Queen's Gambit Declined: Ragozin Defence with 5 Bg5 dxc4.} (7. e4 $11 {keeps the balance.}) 7... Bxc3 $17 {[%emt 0:15:28]} 8. bxc3 {[%emt 0:01:00]} Qd5 {[%emt 0:00:11] [#] Strongly threatening ...Ne4.} 9. Bxf6 {[%emt 0:06:24] Black is better.} gxf6 {[%emt 0:02:07]} 10. e4 {[%emt 0:07:47]} Qxe4 {[%emt 0:00:38] [#]} 11. Bxc4 $146 {[%emt 0:20:27]} ({Predecessor:} 11. Nd2 Qf5 12. Bxc4 Bd7 13. Qa3 b5 14. g4 Qxg4 15. Bxb5 Qf5 16. Qa4 Nb8 17. Bxd7+ Nxd7 {½-½ (26) Podgorny,J-Junge,K Prague 1942}) 11... Bd7 {[%emt 0:00:30]} 12. Qa3 {[%emt 0:00:30]} O-O-O {[%emt 0:11:26]} 13. Rd2 {[%emt 0:05:48]} Kb8 {[%emt 0:06:53]} 14. Rb2 {[%emt 0:06:43]} (14. Re1 $17 {was called for.} Qg4 15. Bf1) 14... Rhg8 $19 {[%emt 0:07:11]} 15. Ne1 {[%emt 0:06:18]} Qf4+ {[%emt 0:09:14]} 16. Kb1 {[%emt 0:00:28]} Qd6 {[%emt 0:00:12]} 17. Qa6 {[%emt 0:02:28]} (17. Qxd6 $17 cxd6 18. Bd3) 17... b6 {[%emt 0:02:22]} 18. Nd3 {[%emt 0:09:51]} Rxg2 {[%emt 0:02:41]} ({Avoid the trap} 18... Bc8 $2 19. Qa4 $19) 19. Ka1 {[%emt 0:00:25]} Rxh2 {[%emt 0:09:03]} 20. Rhb1 {[%emt 0:00:19][%cal Rb2b6]} Bc8 {[%emt 0:00:23][%cal Bd7c8,Bc8b7,Bb7c6,Bc6f3][%mdl 32]} 21. Qa4 {[%emt 0:04:01]} Rh5 {[%emt 0:02:56]} 22. Nc5 {[%emt 0:00:22]} Rxc5 {[%emt 0:01:16]} 23. dxc5 {[%emt 0:00:25]} Qxc5 {[%emt 0:00:08]} 24. Bb5 {[%emt 0:04:41]} Bb7 {[%emt 0:03:34]} 25. Rb3 {[%emt 0:00:35]} Ne7 {[%emt 0:01:37][%cal Bc6e7,Be7c8,Bc8d6][%mdl 32]} 26. Ra3 $2 {[%emt 0:00:59] [#]} (26. Qb4 Qxb4 27. cxb4) 26... Nc8 {[%emt 0:00:36]} 27. Ba6 {[%emt 0:03:00]} Bc6 {[%emt 0:01:22]} 28. Qb3 {[%emt 0:00:40]} Nd6 {[%emt 0:00:51]} 29. Rd1 {[%emt 0:01:49]} Qxf2 {[%emt 0:00:46]} 30. Ra5 $2 {[%emt 0:00:44]} (30. c4) 30... f5 {[%emt 0:04:06] Black is clearly winning.} 31. c4 {[%emt 0:00:42]} Bf3 {[%emt 0:01:35]} 32. Rd3 {[%emt 0:01:41]} Qe1+ {[%emt 0:00:19] Weighted Error Value: White=0.85/Black=0.18 (very precise)} 0-1

[Event "Austrian Championship 2022"]
[Site "Vienna"]
[Date "2022.08.12"]
[Round "1.6"]
[White "Stadlinger, Matthias"]
[Black "Steiner, Adam"]
[Result "1/2-1/2"]
[ECO "D14"]
[WhiteElo "1975"]
[BlackElo "2226"]
[Annotator "TA"]
[PlyCount "83"]
[EventDate "2022.08.12"]
[EventType "swiss"]
[EventCountry "AUT"]
[SourceTitle "playchess.com"]
[Source "ChessBase"]
[SourceQuality "1"]
[TimeControl "40/5400+30:1800+30"]

{[%evp 21,83,0,10,-59,-69,-86,-95,-105,-114,-105,-96,-97,-93,-97,-99,-97,-96,-112,-72,-77,-77,-115,-116,-122,-129,-134,-128,-146,-127,-160,-160,-159,-159,-160,-160,-175,-176,-170,-170,-168,-127,-108,-72,-72,-72,-72,-72,-80,-83,-93,-89,-193,0,0,0,0,0,0,0,0,0,0,0,0]} 1. c4 {[%emt 0:00:02]} c6 {[%emt 0:00:55]} 2. Nc3 {[%emt 0:00:12]} d5 {[%emt 0:00:05]} 3. cxd5 {[%emt 0:02:06]} cxd5 {[%emt 0:00:01]} 4. d4 {[%emt 0:00:07]} Nf6 {[%emt 0:00:09]} 5. Nf3 {[%emt 0:00:32]} Nc6 {[%emt 0:00:11]} 6. Bf4 {[%emt 0:00:47]} Bf5 {[%emt 0:00:33]} 7. e3 {[%emt 0:01:40]} e6 {[%emt 0:00:01]} 8. Bb5 {[%emt 0:12:09]} Nd7 {[%emt 0:00:35]} 9. Qa4 {[%emt 0:08:18]} Rc8 {[%emt 0:18:35][%cal Ba8c8,Bc8c6,Bc6c4][%mdl 32]} 10. O-O {[%emt 0:09:34]} a6 {[%emt 0:02:06]} 11. Bxc6 {[%emt 0:11:57]} Rxc6 {[%emt 0:00:13] [#]} 12. Rfe1 $146 {[%emt 0:00:13] D14: Slav Defence: Exchange variation with ...Bf5.} (12. Rfc1 $11) ({Predecessor:} 12. Rfc1 Be7 13. Ne2 Qb6 14. Rxc6 Qxc6 15. Qxc6 bxc6 16. Rc1 Bd3 17. Nc3 c5 18. dxc5 Nxc5 19. Ne5 f6 20. Nc6 Bc4 21. b3 {1-0 (47) Ivanchuk,V (2739)-Dominguez Perez,L (2719) Moscow 2009}) 12... Be7 $15 {[%emt 0:05:35]} 13. Ne5 {[%emt 0:15:21]} Nxe5 {[%emt 0:01:44]} 14. dxe5 {[%emt 0:00:04] Black is better.} O-O {[%emt 0:06:23]} 15. e4 {[%emt 0:12:04]} Rc4 {[%emt 0:05:11]} 16. Qb3 {[%emt 0:00:06]} Rb4 {[%emt 0:00:28]} 17. Qc2 {[%emt 0:00:55]} dxe4 {[%emt 0:01:37][%cal Oe4e3]} 18. Rad1 {[%emt 0:10:17]} Qc7 {[%emt 0:17:41][%cal Oe4e3] [#] aiming for ...e3!} ({Don't play} 18... e3 $6 19. Rxd8 Bxc2 20. Rxf8+ Kxf8 21. Bxe3 $15) 19. Qe2 {[%emt 0:01:32]} Rd8 {[%emt 0:05:16]} 20. Rxd8+ {[%emt 0:03:07]} Qxd8 {[%emt 0:00:25]} 21. Rd1 {[%emt 0:00:28]} Rd4 {[%emt 0:00:13]} 22. Rxd4 {[%emt 0:01:33]} Qxd4 {[%emt 0:00:03]} 23. g4 {[%emt 0:03:36]} Bg6 {[%emt 0:06:08]} 24. g5 {[%emt 0:00:04]} Qd3 {[%emt 0:07:31]} 25. Qxd3 {[%emt 0:02:12]} exd3 $17 {[%emt 0:00:02][%mdl 4096] Endgame KBB-KBN} 26. a3 {[%emt 0:00:08]} Kf8 {[%emt 0:05:33]} 27. Kf1 {[%emt 0:00:05]} Ke8 {[%emt 0:00:14]} 28. Ke1 {[%emt 0:00:05]} Kd7 {[%emt 0:01:59]} 29. Kd2 {[%emt 0:00:06]} Kc6 {[%emt 0:00:01]} 30. Be3 {[%emt 0:00:18]} b5 {[%emt 0:04:46]} 31. b4 {[%emt 0:00:44]} a5 {[%emt 0:03:17]} 32. bxa5 {[%emt 0:00:07]} Bxa3 {[%emt 0:00:01] [#] White must now prevent ...b4.} 33. a6 {[%emt 0:00:29]} Bb4 {[%emt 0:00:06] This bishop pair is nice.} 34. f3 {[%emt 0:01:10]} Ba5 {[%emt 0:07:09]} 35. a7 {[%emt 0:00:39]} Kb7 {[%emt 0:00:09]} 36. h4 {[%emt 0:00:22]} (36. Bd4 $17) 36... Bh5 $2 {[%emt 0:02:55]} (36... h6 $19 {Strongly threatening ...Ka8.} 37. Bd4 b4) 37. Kxd3 $11 {[%emt 0:00:22] The position is equal.} Bxc3 {[%emt 0:00:32]} 38. Kxc3 {[%emt 0:00:04]} Bxf3 {[%emt 0:00:05]} 39. Kb4 {[%emt 0:00:19]} Ka6 {[%emt 0:00:43]} 40. Bd4 {[%emt 0:02:11]} Ba8 {[%emt 0:00:32]} 41. Be3 {[%emt 0:30:33]} Bd5 {[%emt 0:30:32]} 42. Bd4 {[%emt 0:00:52] And White is the lucky defender.  Weighted Error Value: White=0.15 (very precise) /Black=0.13 (very precise)} 1/2-1/2

[Event "Austrian Championship 2022"]
[Site "Vienna"]
[Date "2022.08.12"]
[Round "1.7"]
[White "Balinov, Ilia"]
[Black "Trkulja, Zoran"]
[Result "1/2-1/2"]
[ECO "A33"]
[WhiteElo "2419"]
[BlackElo "2111"]
[Annotator "TA"]
[PlyCount "66"]
[EventDate "2022.08.12"]
[EventType "swiss"]
[EventCountry "AUT"]
[SourceTitle "playchess.com"]
[Source "ChessBase"]
[SourceQuality "1"]
[TimeControl "40/5400+30:1800+30"]

{[%evp 17,66,45,53,46,54,47,38,33,42,46,47,16,27,0,0,0,0,0,6,0,0,0,0,0,104,-6,0,0,0,0,0,0,0,0,0,-8,33,31,55,52,88,56,160,10,43,0,150,0,20,0,119]} 1. d4 {[%emt 0:00:03]} e6 {[%emt 0:01:38]} 2. g3 {[%emt 0:00:14]} Nf6 {[%emt 0:01:04]} 3. Bg2 {[%emt 0:00:05]} c5 {[%emt 0:01:26]} 4. Nf3 {[%emt 0:00:34]} Nc6 {[%emt 0:00:20]} 5. O-O {[%emt 0:00:14]} Be7 {[%emt 0:03:43]} 6. c4 {[%emt 0:01:41]} cxd4 {[%emt 0:01:21]} 7. Nxd4 {[%emt 0:00:04]} a6 {[%emt 0:03:01]} 8. Nc3 {[%emt 0:00:16]} O-O {[%emt 0:00:12]} 9. b3 {[%emt 0:01:13]} Qa5 {[%emt 0:05:03]} 10. Bb2 {[%emt 0:13:25] A33: Symmetrical English: 2 Nf3 Nf6 3 d4 cxd4 4 Nxd4 e6 5 Nc3 Nc6.} Rb8 {[%emt 0:08:50]} 11. a3 {[%emt 0:02:53]} Qh5 {[%emt 0:07:08]} 12. e4 {[%emt 0:51:31] White is slightly better.} Nxd4 {[%emt 0:05:45]} 13. Qxd4 {[%emt 0:00:07]} d6 {[%emt 0:04:14] [#]} (13... Bc5 14. Qd1 $16) 14. Rfe1 $146 {[%emt 0:09:43]} ({Predecessor:} 14. a4 e5 15. Qd1 Bg4 16. f3 Be6 17. Bc1 Nd7 18. f4 Qxd1 19. Rxd1 exf4 20. gxf4 {0-1 (53) Brunsch,M-Kristmann,U Germany 1991}) 14... b6 {[%emt 0:17:38]} 15. e5 {[%emt 0:07:18]} Ng4 {[%emt 0:17:18][%cal Rd6e5]} 16. h3 $1 {[%emt 0:04:44] Active counter play!} Nxe5 {[%emt 0:03:17]} 17. Ne4 {[%emt 0:00:42]} Bb7 {[%emt 0:08:10]} (17... f6 $5 {[%cal Rc8b7]}) 18. f4 {[%emt 0:00:37]} f5 {[%emt 0:02:28]} 19. Nd2 {[%emt 0:01:28]} ({Much worse is} 19. Nxd6 Bxd6 20. Qxd6 Nf3+ 21. Kf2 Nxe1 22. Rxe1 Bxg2 23. Kxg2 Rfd8 24. Qxe6+ Qf7 $17) 19... Qg6 {[%emt 0:03:20][%cal Og6g3]} 20. fxe5 {[%emt 0:01:00] [#] Bxb7 is the strong threat.} Qxg3 {[%emt 0:00:09]} (20... f4 $1 $11 {remains equal.} 21. Bxb7 (21. exd6 $2 Bf6 $19) 21... d5) 21. Qf2 {[%emt 0:00:57]} (21. Re2 $16) 21... Qxf2+ $11 {[%emt 0:01:13]} 22. Kxf2 {[%emt 0:00:03][%cal Bg1f2,Bf2f1,Bf1g2][%mdl 32] Threatens to win with exd6.} Bh4+ {[%emt 0:00:13]} 23. Kf1 {[%emt 0:00:18][%cal Oe5d6]} Bxe1 {[%emt 0:00:31]} 24. Rxe1 {[%emt 0:00:06]} Bxg2+ {[%emt 0:00:21]} 25. Kxg2 {[%emt 0:00:03]} dxe5 {[%emt 0:00:38]} 26. Rxe5 {[%emt 0:01:14]} Kf7 {[%emt 0:01:37]} 27. Nf3 {[%emt 0:00:06][%mdl 1024] And now Ng5+ would win. White has compensation.} h6 {[%emt 0:00:32] Against Ng5+} 28. Bd4 {[%emt 0:02:11]} Rfe8 {[%emt 0:02:01]} 29. h4 {[%emt 0:00:11]} Rg8 {[%emt 0:01:13]} (29... Rbd8 $14) 30. Be3 {[%emt 0:01:22]} ({White should try} 30. Re1 $16) 30... Kf6 {[%emt 0:00:34]} 31. Bd4 {[%emt 0:00:10]} ({White should play} 31. Kf2 $14) 31... Kf7 $16 {[%emt 0:00:02]} 32. Be3 {[%emt 0:00:55]} (32. Re1 $16) 32... Kf6 $11 {[%emt 0:00:10]} 33. Bd4 {[%emt 0:00:27]} (33. Kf2 $11) 33... Kf7 {[%emt 0:00:10] Weighted Error Value: White=0.34/Black=0.17 (very precise)} 1/2-1/2

[Event "Austrian Championship 2022"]
[Site "Vienna"]
[Date "2022.08.12"]
[Round "1.7"]
[White "Gschiel, Alexander"]
[Black "Weichhart, Daniel"]
[Result "1-0"]
[ECO "E01"]
[WhiteElo "2215"]
[BlackElo "1965"]
[Annotator "TA"]
[PlyCount "81"]
[EventDate "2022.08.12"]
[EventType "swiss"]
[EventCountry "AUT"]
[SourceTitle "playchess.com"]
[Source "ChessBase"]
[SourceQuality "1"]
[TimeControl "40/5400+30:1800+30"]

{[%evp 12,80,-8,0,41,39,62,62,45,53,64,24,57,65,55,64,72,72,58,56,53,55,53,50,52,0,0,2,11,12,12,16,7,12,11,10,11,14,8,6,8,7,5,0,17,0,0,0,0,0,116,111,145,0,0,0,0,0,289,0,254,247,771,700,749,733,29989,29990,29996,29997,29999]} 1. d4 {[%emt 0:00:08]} d5 {[%emt 0:00:06]} 2. c4 {[%emt 0:00:11]} c6 {[%emt 0:00:05]} 3. Nf3 {[%emt 0:00:39]} Nf6 {[%emt 0:00:12]} 4. Nc3 {[%emt 0:01:13]} e6 {[%emt 0:00:08][%cal Be7e6,Be6e5][%mdl 32]} 5. g3 {[%emt 0:00:21]} Nbd7 {[%emt 0:00:31]} 6. Bg2 {[%emt 0:00:45]} dxc4 {[%emt 0:00:08]} 7. a4 {[%emt 0:02:34]} Bd6 {[%emt 0:02:00] E01: Catalan: Early deviations.} 8. Nd2 {[%emt 0:04:09]} e5 {[%emt 0:08:16]} 9. Nxc4 {[%emt 0:04:48]} Bc7 {[%emt 0:01:20] White is slightly better.} 10. O-O {[%emt 0:04:50]} O-O {[%emt 0:02:00] [#]} 11. Be3 $146 {[%emt 0:07:33] White is more active.} ({Predecessor:} 11. d5 cxd5 12. Nxd5 Nxd5 13. Qxd5 Nb6 14. Qxd8 Rxd8 15. Na5 Rb8 16. h3 Nd5 17. Bd2 {½-½ (41) Deac,B (2692)-Aloma Vidal,R (2448) Chess.com INT 2022}) 11... Ng4 {[%emt 0:04:16]} 12. d5 {[%emt 0:00:57]} Nxe3 {[%emt 0:00:52]} 13. Nxe3 {[%emt 0:00:51]} cxd5 {[%emt 0:05:45]} 14. Ncxd5 {[%emt 0:03:22]} Nf6 {[%emt 0:01:25]} 15. Nxc7 {[%emt 0:03:59]} Qxc7 {[%emt 0:00:14]} 16. Rc1 {[%emt 0:00:19]} Qe7 {[%emt 0:00:09]} 17. Qc2 {[%emt 0:08:48]} Rd8 {[%emt 0:13:02]} 18. Nf5 {[%emt 0:10:23]} (18. Rfd1 $14) 18... Bxf5 {[%emt 0:03:39]} 19. Qxf5 {[%emt 0:00:41]} Rd2 {[%emt 0:04:25]} 20. Rc8+ {[%emt 0:05:01]} Rd8 {[%emt 0:01:50]} 21. Rxa8 {[%emt 0:03:12]} Rxa8 {[%emt 0:00:30]} 22. Rc1 {[%emt 0:04:14] Hoping for Rc8+.} g6 {[%emt 0:01:09]} 23. Qf3 {[%emt 0:04:50]} Rb8 {[%emt 0:08:02]} 24. a5 {[%emt 0:02:50]} Kg7 {[%emt 0:01:59]} 25. Qe3 {[%emt 0:01:06]} b6 {[%emt 0:03:10]} 26. a6 {[%emt 0:00:22]} Rd8 {[%emt 0:03:03]} 27. Qc3 {[%emt 0:02:16]} Nd5 {[%emt 0:14:08]} 28. Qc4 {[%emt 0:03:38]} Nb4 {[%emt 0:01:41]} 29. Bb7 {[%emt 0:01:00]} Rd4 {[%emt 0:00:21]} 30. Qc7 {[%emt 0:01:18]} Rd7 {[%emt 0:05:33] [#]} (30... Qf6 $11) 31. Qb8 $1 $16 {[%emt 0:00:52]} Rd2 {[%emt 0:04:21]} 32. Rc8 {[%emt 0:05:40]} (32. Qxa7 $16 Qd6 33. Bg2) 32... Rxe2 $11 {[%emt 0:09:13]} (32... Rd1+ 33. Kg2 $16) 33. Rg8+ {[%emt 0:01:25]} (33. Qxa7 Qf6 34. f4 Qd6) 33... Kf6 {[%emt 0:00:12]} 34. Qc8 {[%emt 0:02:33] aiming for Qg4.} (34. Qxa7 {gets mated.} Qc5) (34. Kf1 Rd2 35. Qf8 Qxf8 36. Rxf8 Ke7 $17) 34... Rxb2 $2 {[%emt 0:02:02][%mdl 8192]} (34... Qd6 $1 $11 {and Black has nothing to worry.}) 35. Qc3 $2 {[%emt 0:02:17]} (35. Qg4 $18 {Black must now prevent Bc8.} Rc2 36. Bc8 Rxc8 37. Qf3+ (37. Rxc8 Kg7 $16) (37. Qxc8 Qe6 $16) 37... Ke6 38. Rxc8) 35... Rb1+ $2 {[%emt 0:00:54][%mdl 8192]} (35... Qd6 $11 36. Qxb2 Qd1+ 37. Kg2 Nd3) 36. Kg2 $18 {[%emt 0:00:01] Dancing on a razor blade.} Qc5 $2 {[%emt 0:00:34]} (36... Qe6 37. Qd2 Qc4) 37. Qf3+ {[%emt 0:00:36]} Ke7 {[%emt 0:00:39]} 38. Qe4 {[%emt 0:00:33] [#] White wants to mate with Qh4+.} Rb2 {[%emt 0:00:41]} 39. Qh4+ {[%emt 0:00:07] White mates.} Ke6 {[%emt 0:00:41]} 40. Re8+ {[%emt 0:00:16]} Kf5 {[%emt 0:00:12]} 41. Be4# {[%emt 0:30:34] Weighted Error Value: White=0.19 (very precise) /Black=0.55} 1-0